bitfinex/quotes_SOLUSD_20250611
["timestamp","ask_amount","ask_price","bid_price","bid_amount"]
[1749626281384,10.21065114,166.0,165.95,10.21065114]
[1749626281593,10.21065114,165.99,165.96,18.64964886]
[1749626281801,31.42,166.05,165.93,10.21065114]
[1749626281802,10.21065114,165.98,165.93,10.21065114]
[1749626282310,10.21065114,165.97,165.92,1.6583]
[1749626282485,10.21065114,165.96,165.92,1.6583]
[1749626282685,10.21065114,165.97,165.93,18.64964886]
[1749626283418,10.21065114,165.96,165.93,18.64964886]
[1749626283620,10.21065114,165.95,165.88,18.64964886]
[1749626283786,10.21065114,165.95,165.91,18.64964886]
[1749626285610,10.21065114,165.95,165.9,18.64964886]
[1749626285812,10.21065114,165.94,165.9,18.64964886]
[1749626285998,10.21065114,165.94,165.88,18.64964886]
[1749626286312,10.21065114,165.94,165.9,18.64964886]
[1749626286895,10.21065114,165.95,165.9,10.21065114]
[1749626287105,10.21065114,165.97,165.93,18.64964886]
[1749626287300,10.21065114,165.95,165.9,10.21065114]
[1749626287601,36.21065114,166.0,165.9,10.21065114]
[1749626287905,10.21065114,165.96,165.92,18.64964886]
[1749626288394,10.21065114,165.98,165.94,18.64964886]
[1749626289214,10.21065114,165.98,165.92,10.21065114]
[1749626289426,10.21065114,165.97,165.92,10.21065114]
[1749626291012,10.21065114,165.98,165.94,18.64964886]
[1749626291313,15.65065114,166.0,165.96,18.64964886]
[1749626291518,10.21065114,166.01,165.96,28.8603]
[1749626291707,10.21065114,166.0,165.96,18.64964886]
[1749626292609,10.21065114,166.03,165.97,28.8603]
[1749626292814,10.21065114,166.03,165.99,18.64964886]
[1749626295334,5.44,166.04,166.0,10.21065114]
[1749626295533,5.44,166.04,165.99,10.21065114]
[1749626295534,31.44,166.04,165.99,10.21065114]
[1749626296209,31.44,166.04,166.0,10.21065114]
[1749626296713,26.0,166.04,166.0,10.21065114]
[1749626297131,36.21065114,166.04,165.99,10.21065114]
[1749626298747,10.21065114,166.03,165.99,18.64964886]
[1749626299733,10.21065114,166.04,165.99,10.21065114]
[1749626300833,10.21065114,166.04,166.0,18.64964886]
[1749626302420,31.42,166.07,166.0,18.64964886]
[1749626302633,10.21065114,166.04,165.97,44.64964886]
[1749626302938,10.21065114,165.99,165.95,18.64964886]
[1749626303242,10.21065114,166.0,165.95,28.8603]
[1749626303811,10.21065114,165.98,165.95,18.64964886]
[1749626304008,10.21065114,165.96,165.91,28.8603]
[1749626306828,10.21065114,165.95,165.91,28.8603]
[1749626307133,10.21065114,165.95,165.91,18.64964886]
[1749626307521,10.21065114,165.96,165.91,28.8603]
[1749626307715,26.0,166.01,165.94,10.21065114]
[1749626307917,10.21065114,166.0,165.95,28.8603]
[1749626308645,10.21065114,165.98,165.95,18.64964886]
[1749626308936,26.0,166.01,165.91,24.82]
[1749626308937,10.21065114,165.96,165.92,18.64964886]
[1749626310024,10.21065114,165.97,165.92,10.21065114]
[1749626311340,36.21065114,165.97,165.92,10.21065114]
[1749626312217,10.21065114,165.96,165.91,28.8603]
[1749626313045,26.0,165.97,165.92,10.21065114]
[1749626313046,36.21065114,165.97,165.92,10.21065114]
[1749626313349,36.21065114,165.97,165.94,18.64964886]
[1749626313519,26.0,165.97,165.94,10.21065114]
[1749626313921,26.0,165.97,165.94,18.64964886]
[1749626314120,36.21065114,165.97,165.9,1.508]
[1749626314322,10.21065114,165.95,165.91,28.8603]
[1749626315148,36.21065114,165.94,165.91,18.64964886]
[1749626315361,26.0,165.94,165.91,18.64964886]
[1749626317142,26.0,165.94,165.87,18.64964886]
[1749626317143,10.21065114,165.92,165.87,18.64964886]
[1749626317444,10.21065114,165.92,165.87,28.8603]
[1749626318252,10.21065114,165.91,165.87,28.8603]
[1749626318749,10.21065114,165.91,165.87,18.64964886]
[1749626319225,10.21065114,165.91,165.87,28.8603]
[1749626320033,26.0,165.95,165.87,28.8603]
[1749626320240,10.21065114,165.92,165.87,28.8603]
[1749626321933,10.21065114,165.92,165.87,18.64964886]
[1749626322134,10.21065114,165.92,165.87,28.8603]
[1749626323237,36.21065114,165.92,165.87,28.8603]
[1749626323743,26.0,165.92,165.88,10.21065114]
[1749626324132,36.21065114,165.92,165.87,28.8603]
[1749626324332,36.21065114,165.92,165.87,18.64964886]
[1749626324550,10.21065114,165.92,165.87,28.8603]
[1749626324723,6.5007,165.98,165.91,18.64964886]
[1749626324924,10.21065114,165.95,165.91,10.21065114]
[1749626325253,10.21065114,165.95,165.91,18.64964886]
[1749626327946,10.21065114,165.97,165.93,18.64964886]
[1749626328145,15.63065114,165.98,165.93,28.8603]
[1749626328450,5.42,165.98,165.95,18.64964886]
[1749626328651,5.42,165.98,165.97,18.64964886]
[1749626328839,10.21065114,166.02,165.97,28.8603]
[1749626329937,5.4,166.05,165.99,28.8603]
[1749626329938,10.21065114,166.04,165.99,28.8603]
[1749626330737,10.21065114,166.03,165.99,18.64964886]
[1749626331852,10.21065114,166.04,165.99,10.21065114]
[1749626333553,10.21065114,166.01,165.99,18.64964886]
[1749626333739,10.21065114,166.01,165.96,28.8603]
[1749626333940,26.0,166.04,165.97,10.21065114]
[1749626333941,10.21065114,166.02,165.97,10.21065114]
[1749626334336,10.21065114,166.02,165.98,18.64964886]
[1749626334847,10.21065114,166.03,165.98,10.21065114]
[1749626335242,10.21065114,166.04,166.0,18.64964886]
[1749626335850,10.21065114,166.03,165.98,10.21065114]
[1749626336354,10.21065114,166.04,166.0,18.64964886]
[1749626339542,10.21065114,166.02,165.98,10.21065114]
[1749626339739,26.0,166.03,165.98,10.21065114]
[1749626340052,26.0,166.03,166.0,10.21065114]
[1749626340247,10.21065114,166.02,165.95,18.64964886]
[1749626340447,10.21065114,165.99,165.95,18.64964886]
[1749626340877,10.21065114,166.01,165.97,18.64964886]
[1749626341853,10.21065114,166.0,165.96,18.64964886]
[1749626342175,10.21065114,166.01,165.96,10.21065114]
[1749626342673,10.21065114,166.02,165.97,10.21065114]
[1749626343461,10.21065114,166.01,165.97,10.21065114]
[1749626343976,10.21065114,166.0,165.96,18.64964886]
[1749626345370,27.5677,166.04,165.96,18.64964886]
[1749626345674,10.21065114,166.0,165.96,18.64964886]
[1749626347677,27.5677,166.04,165.96,10.21065114]
[1749626347889,10.21065114,166.04,165.99,10.21065114]
[1749626348353,15.61065114,166.05,166.01,18.64964886]
[1749626348973,10.21065114,166.04,165.99,10.21065114]
[1749626349495,10.21065114,166.04,165.96,18.64964886]
[1749626349805,15.61065114,166.05,166.01,18.64964886]
[1749626350793,4.44153955,166.05,166.03,18.64964886]
[1749626358384,14.65219069,166.05,166.01,18.64964886]
[1749626358586,4.44153955,166.05,166.01,28.8603]
[1749626358899,4.44153955,166.05,166.03,28.8603]
[1749626359310,4.44153955,166.05,166.03,18.64964886]
[1749626359804,4.44153955,166.05,166.01,10.21065114]
[1749626360196,14.65219069,166.05,166.0,28.8603]
[1749626360425,10.21065114,166.04,166.0,18.64964886]
[1749626361209,4.44153955,166.05,166.0,18.64964886]
[1749626361412,10.21065114,166.01,165.94,11.71785114]
[1749626361617,10.21065114,165.96,165.92,10.21065114]
[1749626361786,10.21065114,165.96,165.9,1.5072]
[1749626361787,10.21065114,165.96,165.91,10.21065114]
[1749626362287,10.21065114,165.96,165.92,18.64964886]
[1749626363805,36.21065114,165.96,165.92,18.64964886]
[1749626366303,10.21065114,165.95,165.91,18.64964886]
[1749626366891,10.21065114,165.94,165.91,18.64964886]
[1749626367091,10.21065114,165.92,165.87,28.8603]
[1749626368095,10.21065114,165.93,165.89,18.64964886]
[1749626368406,26.0,165.96,165.89,18.64964886]
[1749626368617,10.21065114,165.93,165.87,18.64964886]
[1749626368792,10.21065114,165.93,165.89,18.64964886]
[1749626371318,10.21065114,165.95,165.91,18.64964886]
[1749626371905,10.21065114,165.95,165.91,10.21065114]
[1749626372105,1.6587,165.98,165.91,10.21065114]
[1749626372298,10.21065114,165.95,165.91,10.21065114]
[1749626372501,10.21065114,165.98,165.93,10.21065114]
[1749626373227,10.21065114,165.97,165.92,10.21065114]
[1749626373430,10.21065114,165.97,165.93,18.64964886]
[1749626375999,10.21065114,165.97,165.9,18.64964886]
[1749626376205,10.21065114,165.98,165.93,28.8603]
[1749626376504,10.21065114,165.98,165.91,18.64964886]
[1749626376745,10.21065114,166.01,165.97,18.64964886]
[1749626378826,26.0,166.04,165.97,10.21065114]
[1749626379126,10.21065114,166.02,165.97,10.21065114]
[1749626379333,10.21065114,166.03,165.99,18.64964886]
[1749626379810,10.21065114,166.02,165.97,10.21065114]
[1749626380228,4.44153955,166.05,165.99,18.64964886]
[1749626380439,14.65219069,166.05,166.01,18.64964886]
[1749626381223,4.44153955,166.05,166.01,10.21065114]
[1749626381726,4.44153955,166.05,166.03,18.64964886]
[1749626382613,4.44153955,166.05,166.0,1.6535]
[1749626382614,4.44153955,166.05,166.01,18.64964886]
[1749626382819,4.44153955,166.05,166.01,28.8603]
[1749626386233,4.44153955,166.05,166.03,18.64964886]
[1749626387019,4.44153955,166.05,166.01,44.64964886]
[1749626387219,4.44153955,166.05,166.03,18.64964886]
[1749626387429,4.44153955,166.05,166.03,10.21065114]
[1749626388638,4.44153955,166.05,166.01,18.64964886]
[1749626388836,4.44153955,166.05,166.03,10.21065114]
[1749626392215,4.44153955,166.05,166.04,28.8603]
[1749626392423,5.36,166.13,166.09,18.64964886]
[1749626392640,5.36,166.13,166.12,18.64964886]
[1749626392851,5.36,166.13,166.11,18.64964886]
[1749626393847,5.36,166.13,166.11,10.21065114]
[1749626394537,5.36,166.13,166.1,10.21065114]
[1749626395247,10.21065114,166.12,166.07,10.21065114]
[1749626395428,10.21065114,166.12,166.08,18.64964886]
[1749626395620,15.57065114,166.13,166.08,10.21065114]
[1749626395949,15.57065114,166.13,166.09,18.64964886]
[1749626396921,15.57065114,166.13,166.08,18.64964886]
[1749626397240,15.57065114,166.13,166.08,28.8603]
[1749626397851,5.36,166.13,166.09,10.21065114]
[1749626398227,5.36,166.13,166.07,26.0]
[1749626398228,5.36,166.13,166.11,18.64964886]
[1749626399223,5.36,166.13,166.11,10.21065114]
[1749626400418,5.36,166.13,166.12,28.8603]
[1749626400619,5.36,166.13,166.12,18.64964886]
[1749626402138,5.36,166.13,166.12,28.8603]
[1749626402846,10.21065114,166.24,166.13,18.64964886]
[1749626402847,15.57065114,166.21,166.13,18.64964886]
[1749626403050,10.21065114,166.2,166.16,18.64964886]
[1749626404243,10.21065114,166.18,166.14,18.64964886]
[1749626405237,10.21065114,166.18,166.11,18.64964886]
[1749626405468,10.21065114,166.18,166.1,115.9]
[1749626405469,10.21065114,166.18,166.14,18.64964886]
[1749626407255,26.0,166.17,166.16,18.64964886]
[1749626407554,15.57065114,166.21,166.16,28.8603]
[1749626407851,41.57065114,166.21,166.16,28.8603]
[1749626408258,10.21065114,166.2,166.16,18.64964886]
[1749626410954,41.57065114,166.21,166.16,10.21065114]
[1749626412061,36.21065114,166.21,166.16,10.21065114]
[1749626412251,26.0,166.21,166.16,10.21065114]
[1749626412563,10.21065114,166.22,166.18,18.64964886]
[1749626412752,10.21065114,166.21,166.16,10.21065114]
[1749626414138,10.21065114,166.22,166.18,18.64964886]
[1749626414541,15.57065114,166.23,166.18,10.21065114]
[1749626415056,15.57065114,166.23,166.2,18.64964886]
[1749626415057,5.36,166.23,166.2,18.64964886]
[1749626415661,5.36,166.23,166.2,10.21065114]
[1749626415851,5.36,166.23,166.18,18.64964886]
[1749626415852,20.78,166.26,166.22,18.64964886]
[1749626416045,10.21065114,166.26,166.22,18.64964886]
[1749626416358,10.21065114,166.26,166.18,18.64964886]
[1749626416660,10.21065114,166.26,166.22,18.64964886]
[1749626416861,15.57065114,166.28,166.24,18.64964886]
[1749626417356,5.36,166.28,166.24,10.21065114]
[1749626417848,15.57065114,166.28,166.23,10.21065114]
[1749626419054,10.21065114,166.24,166.19,18.64964886]
[1749626419250,10.21065114,166.21,166.19,18.64964886]
[1749626419452,10.21065114,166.21,166.16,10.21065114]
[1749626419654,10.21065114,166.21,166.17,18.64964886]
[1749626420049,10.21065114,166.21,166.16,18.64964886]
[1749626421069,10.21065114,166.2,166.16,18.64964886]
[1749626421562,10.21065114,166.19,166.15,18.64964886]
[1749626422147,10.21065114,166.2,166.15,28.8603]
[1749626424366,10.21065114,166.21,166.16,10.21065114]
[1749626424662,10.21065114,166.2,166.16,10.21065114]
[1749626424865,10.21065114,166.19,166.14,28.8603]
[1749626425049,10.21065114,166.17,166.14,18.64964886]
[1749626425255,10.21065114,166.16,166.12,18.64964886]
[1749626425458,10.21065114,166.17,166.12,28.8603]
[1749626425755,10.21065114,166.24,166.09,116.1185]
[1749626425756,26.0,166.21,166.14,28.8603]
[1749626425966,26.0,166.21,166.16,18.64964886]
[1749626426175,26.0,166.21,166.16,28.8603]
[1749626426176,36.21065114,166.21,166.16,28.8603]
[1749626426861,26.0,166.21,166.18,18.64964886]
[1749626427343,10.21065114,166.22,166.18,18.64964886]
[1749626427676,10.21065114,166.24,166.2,18.64964886]
[1749626428875,10.21065114,166.23,166.2,18.64964886]
[1749626429372,10.21065114,166.27,166.22,18.64964886]
[1749626429578,10.21065114,166.27,166.22,28.8603]
[1749626429758,10.21065114,166.27,166.22,10.21065114]
[1749626430370,15.57065114,166.28,166.24,18.64964886]
[1749626431252,5.36,166.28,166.26,18.64964886]
[1749626431479,15.57065114,166.28,166.26,18.64964886]
[1749626432584,5.36,166.28,166.26,18.64964886]
[1749626434061,5.36,166.28,166.25,28.8603]
[1749626437762,5.36,166.28,166.25,18.64964886]
[1749626437964,5.36,166.28,166.26,10.21065114]
[1749626438963,36.21065114,166.31,166.26,10.21065114]
[1749626439463,26.0,166.31,166.25,18.64964886]
[1749626439679,26.0,166.31,166.28,18.64964886]
[1749626440567,10.21065114,166.34,166.3,18.64964886]
[1749626441383,10.21065114,166.33,166.28,10.21065114]
[1749626441976,10.21065114,166.3,166.25,10.21065114]
[1749626442173,26.0,166.33,166.25,10.21065114]
[1749626442174,10.21065114,166.29,166.25,18.64964886]
[1749626442970,10.21065114,166.28,166.24,18.64964886]
[1749626443668,26.0,166.29,166.24,18.64964886]
[1749626443867,30.3023561,166.36,166.26,28.8603]
[1749626444072,26.0,166.33,166.3,18.64964886]
[1749626444595,10.21065114,166.34,166.27,18.64964886]
[1749626444771,10.21065114,166.34,166.3,18.64964886]
[1749626444977,26.0,166.34,166.3,18.64964886]
[1749626445294,10.21065114,166.34,166.3,18.64964886]
[1749626445463,36.21065114,166.34,166.3,18.64964886]
[1749626446475,36.21065114,166.34,166.27,18.64964886]
[1749626446676,10.21065114,166.34,166.3,18.64964886]
[1749626447792,10.21065114,166.34,166.29,18.64964886]
[1749626448297,10.21065114,166.34,166.29,10.21065114]
[1749626449400,10.21065114,166.33,166.28,10.21065114]
[1749626450589,10.21065114,166.32,166.27,28.8603]
[1749626451994,10.21065114,166.3,166.27,18.64964886]
[1749626452195,10.21065114,166.28,166.23,10.21065114]
[1749626452379,10.21065114,166.28,166.23,28.8603]
[1749626452584,10.21065114,166.29,166.24,10.21065114]
[1749626452794,10.21065114,166.29,166.26,18.64964886]
[1749626453103,10.21065114,166.29,166.24,10.21065114]
[1749626453674,10.21065114,166.3,166.26,18.64964886]
[1749626454189,26.0,166.33,166.26,18.64964886]
[1749626454407,10.21065114,166.32,166.26,28.8603]
[1749626454904,10.21065114,166.31,166.26,28.8603]
[1749626455901,4.47261407,166.34,166.26,28.8603]
[1749626456097,10.21065114,166.31,166.26,28.8603]
[1749626456784,10.21065114,166.31,166.26,10.21065114]
[1749626458501,10.21065114,166.31,166.25,28.8603]
[1749626458807,10.21065114,166.31,166.24,26.0]
[1749626458808,10.21065114,166.26,166.18,91.4076]
[1749626458990,10.21065114,166.23,166.18,1.5076]
[1749626459197,10.21065114,166.23,166.18,11.71825114]
[1749626459397,4.47764842,166.28,166.19,18.64964886]
[1749626459398,26.0,166.27,166.19,18.64964886]
[1749626459705,10.21065114,166.24,166.19,28.8603]
[1749626460379,10.21065114,166.25,166.19,28.8603]
[1749626460576,26.0,166.27,166.19,28.8603]
[1749626460577,10.21065114,166.24,166.19,28.8603]
[1749626461201,10.21065114,166.23,166.19,18.64964886]
[1749626462209,26.0,166.27,166.15,18.64964886]
[1749626462210,10.21065114,166.2,166.15,18.64964886]
[1749626462506,10.21065114,166.19,166.15,18.64964886]
[1749626462821,10.21065114,166.2,166.15,28.8603]
[1749626463609,10.21065114,166.19,166.15,18.64964886]
[1749626463809,10.21065114,166.18,166.15,18.64964886]
[1749626463983,10.21065114,166.19,166.15,18.64964886]
[1749626464383,10.21065114,166.19,166.14,28.8603]
[1749626465012,42.46665114,166.24,166.17,18.64964886]
[1749626465013,10.21065114,166.21,166.17,18.64964886]
[1749626468503,10.21065114,166.2,166.16,18.64964886]
[1749626469905,10.21065114,166.2,166.16,28.8603]
[1749626470108,10.21065114,166.22,166.17,28.8603]
[1749626470317,10.21065114,166.24,166.2,18.64964886]
[1749626471509,5.36,166.26,166.21,10.21065114]
[1749626471811,5.36,166.26,166.21,18.64964886]
[1749626471986,5.36,166.26,166.23,10.21065114]
[1749626472186,10.21065114,166.28,166.23,10.21065114]
[1749626472390,10.21065114,166.28,166.21,18.64964886]
[1749626472391,10.21065114,166.29,166.25,18.64964886]
[1749626474413,15.57065114,166.31,166.26,10.21065114]
[1749626474592,5.36,166.31,166.26,10.21065114]
[1749626476015,10.21065114,166.33,166.28,28.8603]
[1749626476515,10.21065114,166.34,166.3,18.64964886]
[1749626476909,9.30883297,166.34,166.3,18.64964886]
[1749626477218,9.30883297,166.34,166.25,18.64964886]
[1749626477514,9.30883297,166.34,166.3,18.64964886]
[1749626477712,26.0,166.35,166.28,10.21065114]
[1749626477713,36.21065114,166.33,166.28,10.21065114]
[1749626478094,26.0,166.33,166.3,18.64964886]
[1749626478318,10.21065114,166.34,166.3,18.64964886]
[1749626479418,10.21065114,166.34,166.25,44.64964886]
[1749626479619,10.21065114,166.34,166.3,18.64964886]
[1749626481719,10.21065114,166.35,166.31,18.64964886]
[1749626482425,10.21065114,166.37,166.32,10.21065114]
[1749626482618,10.21065114,166.37,166.33,18.64964886]
[1749626483003,5.34,166.4,166.33,18.64964886]
[1749626483199,10.21065114,166.37,166.33,18.64964886]
[1749626483404,10.21065114,166.37,166.33,28.8603]
[1749626483600,10.21065114,166.38,166.33,28.8603]
[1749626485427,8.67940288,166.48,166.37,28.8603]
[1749626485602,8.67940288,166.48,166.47,28.8603]
[1749626485603,3.07704678,166.48,166.47,28.8603]
[1749626486021,3.07704678,166.48,166.47,18.64964886]
[1749626486321,5.34,166.51,166.48,18.64964886]
[1749626486532,5.34,166.51,166.5,28.8603]
[1749626487197,5.34,166.51,166.5,35.5552643]
[1749626487611,2.48773009,166.53,166.51,18.64964886]
[1749626487924,2.48773009,166.53,166.52,16.90561544]
[1749626488319,2.48773009,166.53,166.52,37.1753643]
[1749626492413,5.34,166.64,166.52,37.1753643]
[1749626492414,5.34,166.64,166.56,18.64964886]
[1749626492720,25.50573923,166.77,166.55,26.0]
[1749626492721,0.15,166.67,166.58,35.5552643]
[1749626492913,16.90561544,166.65,166.61,18.64964886]
[1749626493112,0.15,166.67,166.61,18.64964886]
[1749626493317,0.15,166.67,166.63,35.5552643]
[1749626494301,0.15,166.67,166.59,24.78]
[1749626494302,17.05561544,166.67,166.59,24.78]
[1749626494504,16.90561544,166.65,166.6,35.5552643]
[1749626494812,0.15,166.67,166.6,18.64964886]
[1749626494813,16.90561544,166.64,166.6,18.64964886]
[1749626495027,16.90561544,166.64,166.58,18.64964886]
[1749626495211,16.90561544,166.63,166.59,16.90561544]
[1749626495729,16.90561544,166.63,166.58,35.5552643]
[1749626496026,16.90561544,166.62,166.57,35.5552643]
[1749626496723,16.90561544,166.63,166.58,16.90561544]
[1749626496911,0.15,166.67,166.6,18.64964886]
[1749626496912,16.90561544,166.64,166.6,18.64964886]
[1749626497243,16.90561544,166.63,166.6,18.64964886]
[1749626497739,16.90561544,166.65,166.6,16.90561544]
[1749626497925,0.15,166.67,166.62,18.64964886]
[1749626498127,17.05561544,166.67,166.62,35.5552643]
[1749626498334,16.90561544,166.66,166.62,18.64964886]
[1749626498635,16.90561544,166.65,166.62,18.64964886]
[1749626498828,16.90561544,166.65,166.6,16.90561544]
[1749626499034,0.15,166.67,166.6,16.90561544]
[1749626499227,0.15,166.67,166.62,18.64964886]
[1749626499411,0.15,166.67,166.59,18.64964886]
[1749626499412,0.15,166.67,166.6,16.90561544]
[1749626499614,0.15,166.67,166.59,18.64964886]
[1749626499615,0.15,166.67,166.62,18.64964886]
[1749626500636,16.90561544,166.66,166.62,18.64964886]
[1749626500830,16.90561544,166.65,166.6,16.90561544]
[1749626501333,16.90561544,166.64,166.6,18.64964886]
[1749626501721,16.90561544,166.64,166.59,16.90561544]
[1749626502722,16.90561544,166.65,166.61,18.64964886]
[1749626503049,16.90561544,166.66,166.61,35.5552643]
[1749626504515,16.90561544,166.64,166.61,18.64964886]
[1749626504816,16.90561544,166.62,166.56,43.40964886]
[1749626505010,16.90561544,166.63,166.59,18.64964886]
[1749626505211,26.0,166.66,166.59,18.64964886]
[1749626505518,16.90561544,166.61,166.56,35.5552643]
[1749626505722,16.90561544,166.62,166.57,16.90561544]
[1749626506022,16.90561544,166.63,166.58,16.90561544]
[1749626506228,26.0,166.66,166.58,18.64964886]
[1749626506229,16.90561544,166.62,166.58,18.64964886]
[1749626507151,16.90561544,166.62,166.56,18.64964886]
[1749626507458,16.90561544,166.62,166.58,18.64964886]
[1749626508447,26.0,166.66,166.58,18.64964886]
[1749626508751,16.90561544,166.62,166.58,18.64964886]
[1749626509634,26.0,166.66,166.58,18.64964886]
[1749626509818,16.90561544,166.62,166.56,18.64964886]
[1749626510017,16.90561544,166.61,166.57,18.64964886]
[1749626510573,16.90561544,166.61,166.56,35.5552643]
[1749626511323,16.90561544,166.59,166.54,16.90561544]
[1749626511645,16.90561544,166.59,166.52,27.6201]
[1749626511646,16.90561544,166.56,166.55,18.64964886]
[1749626511937,16.90561544,166.56,166.53,18.64964886]
[1749626512141,16.90561544,166.6,166.48,1.6235]
[1749626512330,32.2118,166.64,166.54,16.90561544]
[1749626512522,1.6519,166.66,166.58,35.5552643]
[1749626512722,16.55471542,166.63,166.58,35.5552643]
[1749626513433,16.55471542,166.63,166.56,1.6235]
[1749626513434,16.55471542,166.63,166.57,18.64964886]
[1749626513623,16.55471542,166.63,166.58,16.90561544]
[1749626513827,16.55471542,166.63,166.57,18.64964886]
[1749626514026,16.55471542,166.63,166.58,16.90561544]
[1749626514226,16.90561544,166.62,166.57,35.5552643]
[1749626515245,16.90561544,166.61,166.57,18.64964886]
[1749626515448,16.90561544,166.59,166.57,18.64964886]
[1749626515635,16.90561544,166.59,166.55,18.64964886]
[1749626516342,1.6519,166.66,166.54,18.64964886]
[1749626516343,16.90561544,166.57,166.54,18.64964886]
[1749626516541,16.90561544,166.56,166.54,18.64964886]
[1749626516927,26.0,166.65,166.54,18.64964886]
[1749626517140,16.90561544,166.56,166.54,18.64964886]
[1749626517847,16.90561544,166.55,166.5,16.90561544]
[1749626518150,16.90561544,166.58,166.53,16.90561544]
[1749626519149,6.1112,166.64,166.56,16.90561544]
[1749626519150,16.90561544,166.61,166.56,16.90561544]
[1749626519342,16.90561544,166.58,166.53,16.90561544]
[1749626519745,32.1112,166.64,166.53,16.90561544]
[1749626519935,16.90561544,166.6,166.55,16.90561544]
[1749626520937,16.90561544,166.6,166.56,18.64964886]
[1749626521449,16.90561544,166.6,166.55,16.90561544]
[1749626521450,6.1112,166.64,166.52,18.64964886]
[1749626521749,16.90561544,166.63,166.58,16.90561544]
[1749626521944,16.90561544,166.63,166.55,1.5125]
[1749626521945,6.1112,166.64,166.55,1.5125]
[1749626522134,6.1112,166.64,166.56,18.64964886]
[1749626522342,6.1112,166.64,166.58,16.90561544]
[1749626522539,6.1112,166.64,166.56,18.64964886]
[1749626522540,16.90561544,166.64,166.59,16.90561544]
[1749626523231,16.90561544,166.63,166.58,16.90561544]
[1749626523939,16.90561544,166.63,166.56,18.64964886]
[1749626524261,16.90561544,166.63,166.58,16.90561544]
[1749626525758,16.90561544,166.63,166.56,18.64964886]
[1749626525954,16.90561544,166.62,166.57,16.90561544]
[1749626526156,16.90561544,166.61,166.56,16.90561544]
[1749626526338,16.90561544,166.61,166.56,18.64964886]
[1749626526539,16.90561544,166.62,166.57,35.5552643]
[1749626527862,21.35476636,166.64,166.59,16.90561544]
[1749626528059,4.44914888,166.63,166.59,16.90561544]
[1749626528358,4.44914888,166.62,166.58,16.90561544]
[1749626529068,4.44914888,166.61,166.59,16.90561544]
[1749626529271,4.44914888,166.6,166.59,16.90561544]
[1749626529436,4.46696129,166.6,166.59,16.90561544]
[1749626529856,4.46696129,166.6,166.58,16.90561544]
[1749626530050,16.90561544,166.63,166.58,16.90561544]
[1749626530365,4.46768763,166.62,166.58,16.90561544]
[1749626530569,4.46767978,166.61,166.58,16.90561544]
[1749626530760,4.46767978,166.6,166.58,16.90561544]
[1749626531059,4.46767978,166.59,166.58,16.90561544]
[1749626531268,4.46767978,166.59,166.56,16.90561544]
[1749626531450,16.90561544,166.61,166.55,16.90561544]
[1749626531451,4.47587187,166.58,166.55,16.90561544]
[1749626531647,4.47606015,166.57,166.54,16.90561544]
[1749626531838,16.90561544,166.59,166.54,16.90561544]
[1749626532039,16.90561544,166.6,166.55,16.90561544]
[1749626532351,4.47607321,166.59,166.55,16.90561544]
[1749626532534,4.47607321,166.58,166.55,16.90561544]
[1749626532739,4.47607321,166.57,166.55,16.90561544]
[1749626533040,16.90561544,166.6,166.55,16.90561544]
[1749626533462,4.47820315,166.59,166.55,16.90561544]
[1749626533767,4.47820026,166.58,166.55,16.90561544]
[1749626534069,4.47820026,166.57,166.55,16.90561544]
[1749626534255,16.90561544,166.6,166.55,16.90561544]
[1749626534445,4.47812117,166.59,166.55,16.90561544]
[1749626534761,4.47941082,166.58,166.55,16.90561544]
[1749626534940,16.90561544,166.6,166.55,16.90561544]
[1749626535143,4.47876931,166.59,166.55,16.90561544]
[1749626535451,4.47876981,166.58,166.55,16.90561544]
[1749626535665,4.47876981,166.57,166.55,16.90561544]
[1749626535867,16.90561544,166.6,166.55,16.90561544]
[1749626536165,4.47876302,166.59,166.55,16.90561544]
[1749626536470,4.47878764,166.58,166.54,16.90561544]
[1749626536655,16.90561544,166.6,166.54,16.90561544]
[1749626536838,4.47878867,166.59,166.55,16.90561544]
[1749626537044,4.47878764,166.58,166.55,16.90561544]
[1749626537261,10.1391187,166.6,166.55,10.1391187]
[1749626537571,4.47876496,166.59,166.55,10.1391187]
[1749626537874,10.1391187,166.6,166.55,10.1391187]
[1749626538088,10.1391187,166.6,166.51,18.64964886]
[1749626538089,10.1391187,166.6,166.54,10.1391187]
[1749626538264,14.61738325,166.59,166.54,10.1391187]
[1749626538470,10.1391187,166.59,166.54,10.1391187]
[1749626538671,10.1391187,166.59,166.51,18.64964886]
[1749626538672,14.61754172,166.58,166.51,18.64964886]
[1749626538967,10.1391187,166.57,166.5,1.6225]
[1749626539179,10.1391187,166.56,166.5,10.1391187]
[1749626539346,10.1391187,166.55,166.5,10.1391187]
[1749626539844,10.1391187,166.54,166.49,10.1391187]